{"text_format":"3","workbook":"xlsx","n_sheets":2,"sheets":["Бюджет свадьбы","Сведения о бюджете"],"not_rendered":{"charts":1,"images":1,"defined_names":2},"read":"whole","date_system":"1900"}

{"sheet":"Бюджет свадьбы","index":0,"n_rows":16,"n_cols":16,"rows_kept":16,"merged":[[1,1,1,5]]}
[]
[null,"МАРТА + ИГОРЬ\nСОЕДИНЯЮТСЯ УЗАМИ БРАКА"]
[]
[]
[null,"КАТЕГОРИЯ","ЗАПЛАНИРОВАННЫЕ ЗАТРАТЫ","ФАКТИЧЕСКИЕ ЗАТРАТЫ","ОТКЛОНЕНИЕ","% БЮДЖЕТА",{"$nulls":3},"Без сортировки","Предполагаемые затраты","Фактические затраты","Расчетные затраты — значение ранга","Ранг","№","Сортировка"]
[null,{"$f":"P6","v":"Прием"},{"$f":"VLOOKUP(TBL_Summary[[#This Row],[КАТЕГОРИЯ]],TBL_RankingData,2,FALSE)","v":{"v":14500,"d":"14,500.00 ₽"}},{"$f":"IF(VLOOKUP(TBL_Summary[[#This Row],[КАТЕГОРИЯ]],TBL_RankingData,3,FALSE)=0,\"\",VLOOKUP(TBL_Summary[[#This Row],[КАТЕГОРИЯ]],TBL_RankingData,3,FALSE))","v":{"v":12800,"d":"12,800.00 ₽"}},{"$f":"IF(OR(TBL_Summary[[#This Row],[ЗАПЛАНИРОВАННЫЕ ЗАТРАТЫ]]=\"\",TBL_Summary[[#This Row],[ФАКТИЧЕСКИЕ ЗАТРАТЫ]]=\"\"),\"\",TBL_Summary[[#This Row],[ЗАПЛАНИРОВАННЫЕ ЗАТРАТЫ]]-TBL_Summary[[#This Row],[ФАКТИЧЕСКИЕ ЗАТРАТЫ]])","v":{"v":1700,"d":"1,700.00 ₽"}},{"$f":"TBL_Summary[[#This Row],[ЗАПЛАНИРОВАННЫЕ ЗАТРАТЫ]]/SUM(TBL_Summary[ЗАПЛАНИРОВАННЫЕ ЗАТРАТЫ])","v":{"v":0.48739495798319327,"d":"48.7%"}},{"$nulls":3},"Прием",{"$f":"TBL_Reception[[#Totals],[ЗАПЛАНИРОВАННЫЕ]]","v":14500},{"$f":"TBL_Reception[[#Totals],[ФАКТИЧЕСКИЕ]]","v":12800},{"$f":"K6-O6/100","v":14499.99},{"$f":"_xlfn.RANK.AVG(M6,$M$6:$M$15)","v":1},1,{"$f":"INDEX(TBL_RankingData,MATCH(O6,$N$6:$N$15,0),1)","v":"Прием"}]
[null,{"$f":"P7","v":"Одежда"},{"$f":"VLOOKUP(TBL_Summary[[#This Row],[КАТЕГОРИЯ]],TBL_RankingData,2,FALSE)","v":{"v":4000,"d":"4,000.00 ₽"}},{"$f":"IF(VLOOKUP(TBL_Summary[[#This Row],[КАТЕГОРИЯ]],TBL_RankingData,3,FALSE)=0,\"\",VLOOKUP(TBL_Summary[[#This Row],[КАТЕГОРИЯ]],TBL_RankingData,3,FALSE))","v":{"v":2900,"d":"2,900.00 ₽"}},{"$f":"IF(OR(TBL_Summary[[#This Row],[ЗАПЛАНИРОВАННЫЕ ЗАТРАТЫ]]=\"\",TBL_Summary[[#This Row],[ФАКТИЧЕСКИЕ ЗАТРАТЫ]]=\"\"),\"\",TBL_Summary[[#This Row],[ЗАПЛАНИРОВАННЫЕ ЗАТРАТЫ]]-TBL_Summary[[#This Row],[ФАКТИЧЕСКИЕ ЗАТРАТЫ]])","v":{"v":1100,"d":"1,100.00 ₽"}},{"$f":"TBL_Summary[[#This Row],[ЗАПЛАНИРОВАННЫЕ ЗАТРАТЫ]]/SUM(TBL_Summary[ЗАПЛАНИРОВАННЫЕ ЗАТРАТЫ])","v":{"v":0.13445378151260504,"d":"13.4%"}},{"$nulls":3},"Одежда",{"$f":"TBL_Attire[[#Totals],[ЗАПЛАНИРОВАННЫЕ]]","v":4000},{"$f":"TBL_Attire[[#Totals],[ФАКТИЧЕСКИЕ]]","v":2900},{"$f":"K7-O7/100","v":3999.98},2,2,"Одежда"]
[null,"Цветы и оформление",{"$f":"VLOOKUP(TBL_Summary[[#This Row],[КАТЕГОРИЯ]],TBL_RankingData,2,FALSE)","v":{"v":3000,"d":"3,000.00 ₽"}},{"$f":"IF(VLOOKUP(TBL_Summary[[#This Row],[КАТЕГОРИЯ]],TBL_RankingData,3,FALSE)=0,\"\",VLOOKUP(TBL_Summary[[#This Row],[КАТЕГОРИЯ]],TBL_RankingData,3,FALSE))","v":""},{"$f":"IF(OR(TBL_Summary[[#This Row],[ЗАПЛАНИРОВАННЫЕ ЗАТРАТЫ]]=\"\",TBL_Summary[[#This Row],[ФАКТИЧЕСКИЕ ЗАТРАТЫ]]=\"\"),\"\",TBL_Summary[[#This Row],[ЗАПЛАНИРОВАННЫЕ ЗАТРАТЫ]]-TBL_Summary[[#This Row],[ФАКТИЧЕСКИЕ ЗАТРАТЫ]])","v":""},{"$f":"TBL_Summary[[#This Row],[ЗАПЛАНИРОВАННЫЕ ЗАТРАТЫ]]/SUM(TBL_Summary[ЗАПЛАНИРОВАННЫЕ ЗАТРАТЫ])","v":{"v":0.10084033613445378,"d":"10.1%"}},{"$nulls":3},"Цветы и оформление",{"$f":"TBL_FlowersAndDecor[[#Totals],[ЗАПЛАНИРОВАННЫЕ]]","v":3000},{"$f":"TBL_FlowersAndDecor[[#Totals],[ФАКТИЧЕСКИЕ]]","v":0},2999.97,3,3,"Цветы и оформление"]
[null,"Фото и видео",{"$f":"VLOOKUP(TBL_Summary[[#This Row],[КАТЕГОРИЯ]],TBL_RankingData,2,FALSE)","v":{"v":2500,"d":"2,500.00 ₽"}},{"$f":"IF(VLOOKUP(TBL_Summary[[#This Row],[КАТЕГОРИЯ]],TBL_RankingData,3,FALSE)=0,\"\",VLOOKUP(TBL_Summary[[#This Row],[КАТЕГОРИЯ]],TBL_RankingData,3,FALSE))","v":""},{"$f":"IF(OR(TBL_Summary[[#This Row],[ЗАПЛАНИРОВАННЫЕ ЗАТРАТЫ]]=\"\",TBL_Summary[[#This Row],[ФАКТИЧЕСКИЕ ЗАТРАТЫ]]=\"\"),\"\",TBL_Summary[[#This Row],[ЗАПЛАНИРОВАННЫЕ ЗАТРАТЫ]]-TBL_Summary[[#This Row],[ФАКТИЧЕСКИЕ ЗАТРАТЫ]])","v":""},{"$f":"TBL_Summary[[#This Row],[ЗАПЛАНИРОВАННЫЕ ЗАТРАТЫ]]/SUM(TBL_Summary[ЗАПЛАНИРОВАННЫЕ ЗАТРАТЫ])","v":{"v":0.08403361344537816,"d":"8.4%"}},{"$nulls":3},"Музыка",{"$f":"TBL_Music[[#Totals],[ЗАПЛАНИРОВАННЫЕ]]","v":1800},{"$f":"TBL_Music[[#Totals],[ФАКТИЧЕСКИЕ]]","v":0},1799.96,5,4,"Фото и видео"]
[null,"Музыка",{"$f":"VLOOKUP(TBL_Summary[[#This Row],[КАТЕГОРИЯ]],TBL_RankingData,2,FALSE)","v":{"v":1800,"d":"1,800.00 ₽"}},{"$f":"IF(VLOOKUP(TBL_Summary[[#This Row],[КАТЕГОРИЯ]],TBL_RankingData,3,FALSE)=0,\"\",VLOOKUP(TBL_Summary[[#This Row],[КАТЕГОРИЯ]],TBL_RankingData,3,FALSE))","v":""},{"$f":"IF(OR(TBL_Summary[[#This Row],[ЗАПЛАНИРОВАННЫЕ ЗАТРАТЫ]]=\"\",TBL_Summary[[#This Row],[ФАКТИЧЕСКИЕ ЗАТРАТЫ]]=\"\"),\"\",TBL_Summary[[#This Row],[ЗАПЛАНИРОВАННЫЕ ЗАТРАТЫ]]-TBL_Summary[[#This Row],[ФАКТИЧЕСКИЕ ЗАТРАТЫ]])","v":""},{"$f":"TBL_Summary[[#This Row],[ЗАПЛАНИРОВАННЫЕ ЗАТРАТЫ]]/SUM(TBL_Summary[ЗАПЛАНИРОВАННЫЕ ЗАТРАТЫ])","v":{"v":0.06050420168067227,"d":"6.1%"}},{"$nulls":3},"Фото и видео",{"$f":"TBL_PhotographsAndVideo[[#Totals],[ЗАПЛАНИРОВАННЫЕ]]","v":2500},{"$f":"TBL_PhotographsAndVideo[[#Totals],[ФАКТИЧЕСКИЕ]]","v":0},2499.95,4,5,"Музыка"]
[null,"Сувениры и подарки",{"$f":"VLOOKUP(TBL_Summary[[#This Row],[КАТЕГОРИЯ]],TBL_RankingData,2,FALSE)","v":{"v":1100,"d":"1,100.00 ₽"}},{"$f":"IF(VLOOKUP(TBL_Summary[[#This Row],[КАТЕГОРИЯ]],TBL_RankingData,3,FALSE)=0,\"\",VLOOKUP(TBL_Summary[[#This Row],[КАТЕГОРИЯ]],TBL_RankingData,3,FALSE))","v":""},{"$f":"IF(OR(TBL_Summary[[#This Row],[ЗАПЛАНИРОВАННЫЕ ЗАТРАТЫ]]=\"\",TBL_Summary[[#This Row],[ФАКТИЧЕСКИЕ ЗАТРАТЫ]]=\"\"),\"\",TBL_Summary[[#This Row],[ЗАПЛАНИРОВАННЫЕ ЗАТРАТЫ]]-TBL_Summary[[#This Row],[ФАКТИЧЕСКИЕ ЗАТРАТЫ]])","v":""},{"$f":"TBL_Summary[[#This Row],[ЗАПЛАНИРОВАННЫЕ ЗАТРАТЫ]]/SUM(TBL_Summary[ЗАПЛАНИРОВАННЫЕ ЗАТРАТЫ])","v":{"v":0.03697478991596639,"d":"3.7%"}},{"$nulls":3},"Сувениры и подарки",{"$f":"TBL_FavorsAndGifts[[#Totals],[ЗАПЛАНИРОВАННЫЕ]]","v":1100},{"$f":"TBL_FavorsAndGifts[[#Totals],[ФАКТИЧЕСКИЕ]]","v":0},1099.94,6,6,"Сувениры и подарки"]
[null,{"$f":"P12","v":"Обручальные кольца"},{"$f":"VLOOKUP(TBL_Summary[[#This Row],[КАТЕГОРИЯ]],TBL_RankingData,2,FALSE)","v":{"v":1100,"d":"1,100.00 ₽"}},{"$f":"IF(VLOOKUP(TBL_Summary[[#This Row],[КАТЕГОРИЯ]],TBL_RankingData,3,FALSE)=0,\"\",VLOOKUP(TBL_Summary[[#This Row],[КАТЕГОРИЯ]],TBL_RankingData,3,FALSE))","v":""},{"$f":"IF(OR(TBL_Summary[[#This Row],[ЗАПЛАНИРОВАННЫЕ ЗАТРАТЫ]]=\"\",TBL_Summary[[#This Row],[ФАКТИЧЕСКИЕ ЗАТРАТЫ]]=\"\"),\"\",TBL_Summary[[#This Row],[ЗАПЛАНИРОВАННЫЕ ЗАТРАТЫ]]-TBL_Summary[[#This Row],[ФАКТИЧЕСКИЕ ЗАТРАТЫ]])","v":""},{"$f":"TBL_Summary[[#This Row],[ЗАПЛАНИРОВАННЫЕ ЗАТРАТЫ]]/SUM(TBL_Summary[ЗАПЛАНИРОВАННЫЕ ЗАТРАТЫ])","v":{"v":0.03697478991596639,"d":"3.7%"}},{"$nulls":3},"Церемония",{"$f":"TBL_Ceremony[[#Totals],[ЗАПЛАНИРОВАННЫЕ]]","v":800},{"$f":"TBL_Ceremony[[#Totals],[ФАКТИЧЕСКИЕ]]","v":0},799.93,8,7,"Обручальные кольца"]
[null,"Церемония",{"$f":"VLOOKUP(TBL_Summary[[#This Row],[КАТЕГОРИЯ]],TBL_RankingData,2,FALSE)","v":{"v":800,"d":"800.00 ₽"}},{"$f":"IF(VLOOKUP(TBL_Summary[[#This Row],[КАТЕГОРИЯ]],TBL_RankingData,3,FALSE)=0,\"\",VLOOKUP(TBL_Summary[[#This Row],[КАТЕГОРИЯ]],TBL_RankingData,3,FALSE))","v":""},{"$f":"IF(OR(TBL_Summary[[#This Row],[ЗАПЛАНИРОВАННЫЕ ЗАТРАТЫ]]=\"\",TBL_Summary[[#This Row],[ФАКТИЧЕСКИЕ ЗАТРАТЫ]]=\"\"),\"\",TBL_Summary[[#This Row],[ЗАПЛАНИРОВАННЫЕ ЗАТРАТЫ]]-TBL_Summary[[#This Row],[ФАКТИЧЕСКИЕ ЗАТРАТЫ]])","v":""},{"$f":"TBL_Summary[[#This Row],[ЗАПЛАНИРОВАННЫЕ ЗАТРАТЫ]]/SUM(TBL_Summary[ЗАПЛАНИРОВАННЫЕ ЗАТРАТЫ])","v":{"v":0.02689075630252101,"d":"2.7%"}},{"$nulls":3},"Канцтовары",{"$f":"TBL_Stationery[[#Totals],[ЗАПЛАНИРОВАННЫЕ]]","v":500},{"$f":"TBL_Stationery[[#Totals],[ФАКТИЧЕСКИЕ]]","v":0},499.92,9,8,"Церемония"]
[null,"Канцтовары",{"$f":"VLOOKUP(TBL_Summary[[#This Row],[КАТЕГОРИЯ]],TBL_RankingData,2,FALSE)","v":{"v":500,"d":"500.00 ₽"}},{"$f":"IF(VLOOKUP(TBL_Summary[[#This Row],[КАТЕГОРИЯ]],TBL_RankingData,3,FALSE)=0,\"\",VLOOKUP(TBL_Summary[[#This Row],[КАТЕГОРИЯ]],TBL_RankingData,3,FALSE))","v":""},{"$f":"IF(OR(TBL_Summary[[#This Row],[ЗАПЛАНИРОВАННЫЕ ЗАТРАТЫ]]=\"\",TBL_Summary[[#This Row],[ФАКТИЧЕСКИЕ ЗАТРАТЫ]]=\"\"),\"\",TBL_Summary[[#This Row],[ЗАПЛАНИРОВАННЫЕ ЗАТРАТЫ]]-TBL_Summary[[#This Row],[ФАКТИЧЕСКИЕ ЗАТРАТЫ]])","v":""},{"$f":"TBL_Summary[[#This Row],[ЗАПЛАНИРОВАННЫЕ ЗАТРАТЫ]]/SUM(TBL_Summary[ЗАПЛАНИРОВАННЫЕ ЗАТРАТЫ])","v":{"v":0.01680672268907563,"d":"1.7%"}},{"$nulls":3},"Обручальные кольца",{"$f":"TBL_WeddingRings[[#Totals],[ЗАПЛАНИРОВАННЫЕ]]","v":1100},{"$f":"TBL_WeddingRings[[#Totals],[ФАКТИЧЕСКИЕ]]","v":0},1099.91,7,9,"Канцтовары"]
[null,"Транспорт",{"$f":"VLOOKUP(TBL_Summary[[#This Row],[КАТЕГОРИЯ]],TBL_RankingData,2,FALSE)","v":{"v":450,"d":"450.00 ₽"}},{"$f":"IF(VLOOKUP(TBL_Summary[[#This Row],[КАТЕГОРИЯ]],TBL_RankingData,3,FALSE)=0,\"\",VLOOKUP(TBL_Summary[[#This Row],[КАТЕГОРИЯ]],TBL_RankingData,3,FALSE))","v":""},{"$f":"IF(OR(TBL_Summary[[#This Row],[ЗАПЛАНИРОВАННЫЕ ЗАТРАТЫ]]=\"\",TBL_Summary[[#This Row],[ФАКТИЧЕСКИЕ ЗАТРАТЫ]]=\"\"),\"\",TBL_Summary[[#This Row],[ЗАПЛАНИРОВАННЫЕ ЗАТРАТЫ]]-TBL_Summary[[#This Row],[ФАКТИЧЕСКИЕ ЗАТРАТЫ]])","v":""},{"$f":"TBL_Summary[[#This Row],[ЗАПЛАНИРОВАННЫЕ ЗАТРАТЫ]]/SUM(TBL_Summary[ЗАПЛАНИРОВАННЫЕ ЗАТРАТЫ])","v":{"v":0.015126050420168067,"d":"1.5%"}},{"$nulls":3},"Транспорт",{"$f":"TBL_Transportation[[#Totals],[ЗАПЛАНИРОВАННЫЕ]]","v":450},{"$f":"TBL_Transportation[[#Totals],[ФАКТИЧЕСКИЕ]]","v":0},449.9,10,10,"Транспорт"]
[null,"Итог",{"$f":"SUBTOTAL(109,TBL_Summary[ЗАПЛАНИРОВАННЫЕ ЗАТРАТЫ])","v":{"v":29750,"d":"29,750.00 ₽"}},{"$f":"SUBTOTAL(109,TBL_Summary[ФАКТИЧЕСКИЕ ЗАТРАТЫ])","v":{"v":15700,"d":"15,700.00 ₽"}},{"$f":"TBL_Summary[[#Totals],[ЗАПЛАНИРОВАННЫЕ ЗАТРАТЫ]]-TBL_Summary[[#Totals],[ФАКТИЧЕСКИЕ ЗАТРАТЫ]]","v":{"v":14050,"d":"14,050.00 ₽"}},{"$f":"SUBTOTAL(109,TBL_Summary[% БЮДЖЕТА])","v":{"v":1,"d":"100%"}}]

{"sheet":"Сведения о бюджете","index":1,"n_rows":91,"n_cols":5,"rows_kept":91}
[]
[null,"СВЕДЕНИЯ О БЮДЖЕТЕ"]
[]
[null,"ПРИЕМ","ЗАПЛАНИРОВАННЫЕ","ФАКТИЧЕСКИЕ","ОТКЛОНЕНИЕ"]
[null,"Место проведения и аренда",{"v":8000,"d":"8,000.00 ₽"},{"v":7800,"d":"7,800.00 ₽"},{"$f":"IF(OR(TBL_Reception[[#This Row],[ЗАПЛАНИРОВАННЫЕ]]=\"\",TBL_Reception[[#This Row],[ФАКТИЧЕСКИЕ]]=\"\"),\"\",TBL_Reception[[#This Row],[ЗАПЛАНИРОВАННЫЕ]]-TBL_Reception[[#This Row],[ФАКТИЧЕСКИЕ]])","v":{"v":200,"d":"200.00 ₽"}}]
[null,"Питание и обслуживание",{"v":4000,"d":"4,000.00 ₽"},{"v":4200,"d":"4,200.00 ₽"},{"$f":"IF(OR(TBL_Reception[[#This Row],[ЗАПЛАНИРОВАННЫЕ]]=\"\",TBL_Reception[[#This Row],[ФАКТИЧЕСКИЕ]]=\"\"),\"\",TBL_Reception[[#This Row],[ЗАПЛАНИРОВАННЫЕ]]-TBL_Reception[[#This Row],[ФАКТИЧЕСКИЕ]])","v":{"v":-200,"d":"-200.00 ₽"}}]
[null,"Напитки",{"v":1000,"d":"1,000.00 ₽"},{"v":800,"d":"800.00 ₽"},{"$f":"IF(OR(TBL_Reception[[#This Row],[ЗАПЛАНИРОВАННЫЕ]]=\"\",TBL_Reception[[#This Row],[ФАКТИЧЕСКИЕ]]=\"\"),\"\",TBL_Reception[[#This Row],[ЗАПЛАНИРОВАННЫЕ]]-TBL_Reception[[#This Row],[ФАКТИЧЕСКИЕ]])","v":{"v":200,"d":"200.00 ₽"}}]
[null,"Торт",{"v":1000,"d":"1,000.00 ₽"},null,{"$f":"IF(OR(TBL_Reception[[#This Row],[ЗАПЛАНИРОВАННЫЕ]]=\"\",TBL_Reception[[#This Row],[ФАКТИЧЕСКИЕ]]=\"\"),\"\",TBL_Reception[[#This Row],[ЗАПЛАНИРОВАННЫЕ]]-TBL_Reception[[#This Row],[ФАКТИЧЕСКИЕ]])","v":""}]
[null,"Прочие расходы",{"v":500,"d":"500.00 ₽"},null,{"$f":"IF(OR(TBL_Reception[[#This Row],[ЗАПЛАНИРОВАННЫЕ]]=\"\",TBL_Reception[[#This Row],[ФАКТИЧЕСКИЕ]]=\"\"),\"\",TBL_Reception[[#This Row],[ЗАПЛАНИРОВАННЫЕ]]-TBL_Reception[[#This Row],[ФАКТИЧЕСКИЕ]])","v":""}]
[null,"ИТОГО — ПРИЕМ",{"$f":"SUBTOTAL(109,TBL_Reception[ЗАПЛАНИРОВАННЫЕ])","v":{"v":14500,"d":"14,500.00 ₽"}},{"$f":"SUBTOTAL(109,TBL_Reception[ФАКТИЧЕСКИЕ])","v":{"v":12800,"d":"12,800.00 ₽"}},{"$f":"TBL_Reception[[#Totals],[ЗАПЛАНИРОВАННЫЕ]]-TBL_Reception[[#Totals],[ФАКТИЧЕСКИЕ]]","v":{"v":1700,"d":"1,700.00 ₽"}}]
[]
[]
[null,"ОДЕЖДА","ЗАПЛАНИРОВАННЫЕ","ФАКТИЧЕСКИЕ","ОТКЛОНЕНИЕ"]
[null,"Смокинг, костюм и/или платье",{"v":3000,"d":"3,000.00 ₽"},{"v":2900,"d":"2,900.00 ₽"},{"$f":"IF(OR(TBL_Attire[[#This Row],[ЗАПЛАНИРОВАННЫЕ]]=\"\",TBL_Attire[[#This Row],[ФАКТИЧЕСКИЕ]]=\"\"),\"\",TBL_Attire[[#This Row],[ЗАПЛАНИРОВАННЫЕ]]-TBL_Attire[[#This Row],[ФАКТИЧЕСКИЕ]])","v":{"v":100,"d":"100.00 ₽"}}]
[null,"Подгонка по фигуре",{"v":100,"d":"100.00 ₽"},null,{"$f":"IF(OR(TBL_Attire[[#This Row],[ЗАПЛАНИРОВАННЫЕ]]=\"\",TBL_Attire[[#This Row],[ФАКТИЧЕСКИЕ]]=\"\"),\"\",TBL_Attire[[#This Row],[ЗАПЛАНИРОВАННЫЕ]]-TBL_Attire[[#This Row],[ФАКТИЧЕСКИЕ]])","v":""}]
[null,"Головное украшение и вуаль",{"v":200,"d":"200.00 ₽"},null,{"$f":"IF(OR(TBL_Attire[[#This Row],[ЗАПЛАНИРОВАННЫЕ]]=\"\",TBL_Attire[[#This Row],[ФАКТИЧЕСКИЕ]]=\"\"),\"\",TBL_Attire[[#This Row],[ЗАПЛАНИРОВАННЫЕ]]-TBL_Attire[[#This Row],[ФАКТИЧЕСКИЕ]])","v":""}]
[null,"Аксессуары",{"v":100,"d":"100.00 ₽"},null,{"$f":"IF(OR(TBL_Attire[[#This Row],[ЗАПЛАНИРОВАННЫЕ]]=\"\",TBL_Attire[[#This Row],[ФАКТИЧЕСКИЕ]]=\"\"),\"\",TBL_Attire[[#This Row],[ЗАПЛАНИРОВАННЫЕ]]-TBL_Attire[[#This Row],[ФАКТИЧЕСКИЕ]])","v":""}]
[null,"Прическа и макияж",{"v":500,"d":"500.00 ₽"},null,{"$f":"IF(OR(TBL_Attire[[#This Row],[ЗАПЛАНИРОВАННЫЕ]]=\"\",TBL_Attire[[#This Row],[ФАКТИЧЕСКИЕ]]=\"\"),\"\",TBL_Attire[[#This Row],[ЗАПЛАНИРОВАННЫЕ]]-TBL_Attire[[#This Row],[ФАКТИЧЕСКИЕ]])","v":""}]
[null,"Прочие расходы",{"v":100,"d":"100.00 ₽"},null,{"$f":"IF(OR(TBL_Attire[[#This Row],[ЗАПЛАНИРОВАННЫЕ]]=\"\",TBL_Attire[[#This Row],[ФАКТИЧЕСКИЕ]]=\"\"),\"\",TBL_Attire[[#This Row],[ЗАПЛАНИРОВАННЫЕ]]-TBL_Attire[[#This Row],[ФАКТИЧЕСКИЕ]])","v":""}]
[null,"ИТОГО — ОДЕЖДА",{"$f":"SUBTOTAL(109,TBL_Attire[ЗАПЛАНИРОВАННЫЕ])","v":{"v":4000,"d":"4,000.00 ₽"}},{"$f":"SUBTOTAL(109,TBL_Attire[ФАКТИЧЕСКИЕ])","v":{"v":2900,"d":"2,900.00 ₽"}},{"$f":"TBL_Attire[[#Totals],[ЗАПЛАНИРОВАННЫЕ]]-TBL_Attire[[#Totals],[ФАКТИЧЕСКИЕ]]","v":{"v":1100,"d":"1,100.00 ₽"}}]
[]
[]
[null,"ЦВЕТЫ И ОФОРМЛЕНИЕ","ЗАПЛАНИРОВАННЫЕ","ФАКТИЧЕСКИЕ","ОТКЛОНЕНИЕ"]
[null,"Цветочные композиции для церемонии",{"v":1000,"d":"1,000.00 ₽"},null,{"$f":"IF(OR(TBL_FlowersAndDecor[[#This Row],[ЗАПЛАНИРОВАННЫЕ]]=\"\",TBL_FlowersAndDecor[[#This Row],[ФАКТИЧЕСКИЕ]]=\"\"),\"\",TBL_FlowersAndDecor[[#This Row],[ЗАПЛАНИРОВАННЫЕ]]-TBL_FlowersAndDecor[[#This Row],[ФАКТИЧЕСКИЕ]])","v":""}]
[null,"Бутоны и корзина девочки с цветами",{"v":500,"d":"500.00 ₽"},null,{"$f":"IF(OR(TBL_FlowersAndDecor[[#This Row],[ЗАПЛАНИРОВАННЫЕ]]=\"\",TBL_FlowersAndDecor[[#This Row],[ФАКТИЧЕСКИЕ]]=\"\"),\"\",TBL_FlowersAndDecor[[#This Row],[ЗАПЛАНИРОВАННЫЕ]]-TBL_FlowersAndDecor[[#This Row],[ФАКТИЧЕСКИЕ]])","v":""}]
[null,"Подушка для колец",{"v":100,"d":"100.00 ₽"},null,{"$f":"IF(OR(TBL_FlowersAndDecor[[#This Row],[ЗАПЛАНИРОВАННЫЕ]]=\"\",TBL_FlowersAndDecor[[#This Row],[ФАКТИЧЕСКИЕ]]=\"\"),\"\",TBL_FlowersAndDecor[[#This Row],[ЗАПЛАНИРОВАННЫЕ]]-TBL_FlowersAndDecor[[#This Row],[ФАКТИЧЕСКИЕ]])","v":""}]
[null,"Букеты",{"v":500,"d":"500.00 ₽"},null,{"$f":"IF(OR(TBL_FlowersAndDecor[[#This Row],[ЗАПЛАНИРОВАННЫЕ]]=\"\",TBL_FlowersAndDecor[[#This Row],[ФАКТИЧЕСКИЕ]]=\"\"),\"\",TBL_FlowersAndDecor[[#This Row],[ЗАПЛАНИРОВАННЫЕ]]-TBL_FlowersAndDecor[[#This Row],[ФАКТИЧЕСКИЕ]])","v":""}]
[null,"Бутоньерки",{"v":100,"d":"100.00 ₽"},null,{"$f":"IF(OR(TBL_FlowersAndDecor[[#This Row],[ЗАПЛАНИРОВАННЫЕ]]=\"\",TBL_FlowersAndDecor[[#This Row],[ФАКТИЧЕСКИЕ]]=\"\"),\"\",TBL_FlowersAndDecor[[#This Row],[ЗАПЛАНИРОВАННЫЕ]]-TBL_FlowersAndDecor[[#This Row],[ФАКТИЧЕСКИЕ]])","v":""}]
[null,"Цветочные браслеты",{"v":200,"d":"200.00 ₽"},null,{"$f":"IF(OR(TBL_FlowersAndDecor[[#This Row],[ЗАПЛАНИРОВАННЫЕ]]=\"\",TBL_FlowersAndDecor[[#This Row],[ФАКТИЧЕСКИЕ]]=\"\"),\"\",TBL_FlowersAndDecor[[#This Row],[ЗАПЛАНИРОВАННЫЕ]]-TBL_FlowersAndDecor[[#This Row],[ФАКТИЧЕСКИЕ]])","v":""}]
[null,"Оформление приема",{"v":300,"d":"300.00 ₽"},null,{"$f":"IF(OR(TBL_FlowersAndDecor[[#This Row],[ЗАПЛАНИРОВАННЫЕ]]=\"\",TBL_FlowersAndDecor[[#This Row],[ФАКТИЧЕСКИЕ]]=\"\"),\"\",TBL_FlowersAndDecor[[#This Row],[ЗАПЛАНИРОВАННЫЕ]]-TBL_FlowersAndDecor[[#This Row],[ФАКТИЧЕСКИЕ]])","v":""}]
[null,"Освещение",{"v":200,"d":"200.00 ₽"},null,{"$f":"IF(OR(TBL_FlowersAndDecor[[#This Row],[ЗАПЛАНИРОВАННЫЕ]]=\"\",TBL_FlowersAndDecor[[#This Row],[ФАКТИЧЕСКИЕ]]=\"\"),\"\",TBL_FlowersAndDecor[[#This Row],[ЗАПЛАНИРОВАННЫЕ]]-TBL_FlowersAndDecor[[#This Row],[ФАКТИЧЕСКИЕ]])","v":""}]
[null,"Прочие расходы",{"v":100,"d":"100.00 ₽"},null,{"$f":"IF(OR(TBL_FlowersAndDecor[[#This Row],[ЗАПЛАНИРОВАННЫЕ]]=\"\",TBL_FlowersAndDecor[[#This Row],[ФАКТИЧЕСКИЕ]]=\"\"),\"\",TBL_FlowersAndDecor[[#This Row],[ЗАПЛАНИРОВАННЫЕ]]-TBL_FlowersAndDecor[[#This Row],[ФАКТИЧЕСКИЕ]])","v":""}]
[null,"ИТОГО — ЦВЕТЫ И ОФОРМЛЕНИЕ",{"$f":"SUBTOTAL(109,TBL_FlowersAndDecor[ЗАПЛАНИРОВАННЫЕ])","v":{"v":3000,"d":"3,000.00 ₽"}},{"$f":"SUBTOTAL(109,TBL_FlowersAndDecor[ФАКТИЧЕСКИЕ])","v":{"v":0,"d":"0.00 ₽"}},{"$f":"TBL_FlowersAndDecor[[#Totals],[ЗАПЛАНИРОВАННЫЕ]]-TBL_FlowersAndDecor[[#Totals],[ФАКТИЧЕСКИЕ]]","v":{"v":3000,"d":"3,000.00 ₽"}}]
[]
[]
[null,"МУЗЫКА","ЗАПЛАНИРОВАННЫЕ","ФАКТИЧЕСКИЕ","ОТКЛОНЕНИЕ"]
[null,"Музыканты церемонии",{"v":700,"d":"700.00 ₽"},null,{"$f":"IF(OR(TBL_Music[[#This Row],[ЗАПЛАНИРОВАННЫЕ]]=\"\",TBL_Music[[#This Row],[ФАКТИЧЕСКИЕ]]=\"\"),\"\",TBL_Music[[#This Row],[ЗАПЛАНИРОВАННЫЕ]]-TBL_Music[[#This Row],[ФАКТИЧЕСКИЕ]])","v":""}]
[null,"Музыканты для коктейля",{"v":300,"d":"300.00 ₽"},null,{"$f":"IF(OR(TBL_Music[[#This Row],[ЗАПЛАНИРОВАННЫЕ]]=\"\",TBL_Music[[#This Row],[ФАКТИЧЕСКИЕ]]=\"\"),\"\",TBL_Music[[#This Row],[ЗАПЛАНИРОВАННЫЕ]]-TBL_Music[[#This Row],[ФАКТИЧЕСКИЕ]])","v":""}]
[null,"Группа, диджей или развлечения на приеме",{"v":200,"d":"200.00 ₽"},null,{"$f":"IF(OR(TBL_Music[[#This Row],[ЗАПЛАНИРОВАННЫЕ]]=\"\",TBL_Music[[#This Row],[ФАКТИЧЕСКИЕ]]=\"\"),\"\",TBL_Music[[#This Row],[ЗАПЛАНИРОВАННЫЕ]]-TBL_Music[[#This Row],[ФАКТИЧЕСКИЕ]])","v":""}]
[null,"Звуковая система или аренда танцевальной площадки",{"v":400,"d":"400.00 ₽"},null,{"$f":"IF(OR(TBL_Music[[#This Row],[ЗАПЛАНИРОВАННЫЕ]]=\"\",TBL_Music[[#This Row],[ФАКТИЧЕСКИЕ]]=\"\"),\"\",TBL_Music[[#This Row],[ЗАПЛАНИРОВАННЫЕ]]-TBL_Music[[#This Row],[ФАКТИЧЕСКИЕ]])","v":""}]
[null,"Прочие расходы",{"v":200,"d":"200.00 ₽"},null,{"$f":"IF(OR(TBL_Music[[#This Row],[ЗАПЛАНИРОВАННЫЕ]]=\"\",TBL_Music[[#This Row],[ФАКТИЧЕСКИЕ]]=\"\"),\"\",TBL_Music[[#This Row],[ЗАПЛАНИРОВАННЫЕ]]-TBL_Music[[#This Row],[ФАКТИЧЕСКИЕ]])","v":""}]
[null,"ИТОГО — МУЗЫКА",{"$f":"SUBTOTAL(109,TBL_Music[ЗАПЛАНИРОВАННЫЕ])","v":{"v":1800,"d":"1,800.00 ₽"}},{"$f":"SUBTOTAL(109,TBL_Music[ФАКТИЧЕСКИЕ])","v":{"v":0,"d":"0.00 ₽"}},{"$f":"TBL_Music[[#Totals],[ЗАПЛАНИРОВАННЫЕ]]-TBL_Music[[#Totals],[ФАКТИЧЕСКИЕ]]","v":{"v":1800,"d":"1,800.00 ₽"}}]
[]
[]
[null,"ФОТОГРАФИИ И ВИДЕО","ЗАПЛАНИРОВАННЫЕ","ФАКТИЧЕСКИЕ","ОТКЛОНЕНИЕ"]
[null,"Фотографии",{"v":1000,"d":"1,000.00 ₽"},null,{"$f":"IF(OR(TBL_PhotographsAndVideo[[#This Row],[ЗАПЛАНИРОВАННЫЕ]]=\"\",TBL_PhotographsAndVideo[[#This Row],[ФАКТИЧЕСКИЕ]]=\"\"),\"\",TBL_PhotographsAndVideo[[#This Row],[ЗАПЛАНИРОВАННЫЕ]]-TBL_PhotographsAndVideo[[#This Row],[ФАКТИЧЕСКИЕ]])","v":""}]
[null,"Видео",{"v":800,"d":"800.00 ₽"},null,{"$f":"IF(OR(TBL_PhotographsAndVideo[[#This Row],[ЗАПЛАНИРОВАННЫЕ]]=\"\",TBL_PhotographsAndVideo[[#This Row],[ФАКТИЧЕСКИЕ]]=\"\"),\"\",TBL_PhotographsAndVideo[[#This Row],[ЗАПЛАНИРОВАННЫЕ]]-TBL_PhotographsAndVideo[[#This Row],[ФАКТИЧЕСКИЕ]])","v":""}]
[null,"Дополнительные печатные фотографии и альбомы",{"v":500,"d":"500.00 ₽"},null,{"$f":"IF(OR(TBL_PhotographsAndVideo[[#This Row],[ЗАПЛАНИРОВАННЫЕ]]=\"\",TBL_PhotographsAndVideo[[#This Row],[ФАКТИЧЕСКИЕ]]=\"\"),\"\",TBL_PhotographsAndVideo[[#This Row],[ЗАПЛАНИРОВАННЫЕ]]-TBL_PhotographsAndVideo[[#This Row],[ФАКТИЧЕСКИЕ]])","v":""}]
[null,"Прочие расходы",{"v":200,"d":"200.00 ₽"},null,{"$f":"IF(OR(TBL_PhotographsAndVideo[[#This Row],[ЗАПЛАНИРОВАННЫЕ]]=\"\",TBL_PhotographsAndVideo[[#This Row],[ФАКТИЧЕСКИЕ]]=\"\"),\"\",TBL_PhotographsAndVideo[[#This Row],[ЗАПЛАНИРОВАННЫЕ]]-TBL_PhotographsAndVideo[[#This Row],[ФАКТИЧЕСКИЕ]])","v":""}]
[null,"ИТОГО — ФОТОГРАФИИ И ВИДЕО",{"$f":"SUBTOTAL(109,TBL_PhotographsAndVideo[ЗАПЛАНИРОВАННЫЕ])","v":{"v":2500,"d":"2,500.00 ₽"}},{"$f":"SUBTOTAL(109,TBL_PhotographsAndVideo[ФАКТИЧЕСКИЕ])","v":{"v":0,"d":"0.00 ₽"}},{"$f":"TBL_PhotographsAndVideo[[#Totals],[ЗАПЛАНИРОВАННЫЕ]]-TBL_PhotographsAndVideo[[#Totals],[ФАКТИЧЕСКИЕ]]","v":{"v":2500,"d":"2,500.00 ₽"}}]
[]
[]
[null,"СУВЕНИРЫ И ПОДАРКИ","ЗАПЛАНИРОВАННЫЕ","ФАКТИЧЕСКИЕ","ОТКЛОНЕНИЕ"]
[null,"Приветственные подарки",{"v":700,"d":"700.00 ₽"},null,{"$f":"IF(OR(TBL_FavorsAndGifts[[#This Row],[ЗАПЛАНИРОВАННЫЕ]]=\"\",TBL_FavorsAndGifts[[#This Row],[ФАКТИЧЕСКИЕ]]=\"\"),\"\",TBL_FavorsAndGifts[[#This Row],[ЗАПЛАНИРОВАННЫЕ]]-TBL_FavorsAndGifts[[#This Row],[ФАКТИЧЕСКИЕ]])","v":""}]
[null,"Праздничные подарки",{"v":200,"d":"200.00 ₽"},null,{"$f":"IF(OR(TBL_FavorsAndGifts[[#This Row],[ЗАПЛАНИРОВАННЫЕ]]=\"\",TBL_FavorsAndGifts[[#This Row],[ФАКТИЧЕСКИЕ]]=\"\"),\"\",TBL_FavorsAndGifts[[#This Row],[ЗАПЛАНИРОВАННЫЕ]]-TBL_FavorsAndGifts[[#This Row],[ФАКТИЧЕСКИЕ]])","v":""}]
[null,"Прочие расходы",{"v":200,"d":"200.00 ₽"},null,{"$f":"IF(OR(TBL_FavorsAndGifts[[#This Row],[ЗАПЛАНИРОВАННЫЕ]]=\"\",TBL_FavorsAndGifts[[#This Row],[ФАКТИЧЕСКИЕ]]=\"\"),\"\",TBL_FavorsAndGifts[[#This Row],[ЗАПЛАНИРОВАННЫЕ]]-TBL_FavorsAndGifts[[#This Row],[ФАКТИЧЕСКИЕ]])","v":""}]
[null,"ИТОГО — СУВЕНИРЫ И ПОДАРКИ",{"$f":"SUBTOTAL(109,TBL_FavorsAndGifts[ЗАПЛАНИРОВАННЫЕ])","v":{"v":1100,"d":"1,100.00 ₽"}},{"$f":"SUBTOTAL(109,TBL_FavorsAndGifts[ФАКТИЧЕСКИЕ])","v":{"v":0,"d":"0.00 ₽"}},{"$f":"TBL_FavorsAndGifts[[#Totals],[ЗАПЛАНИРОВАННЫЕ]]-TBL_FavorsAndGifts[[#Totals],[ФАКТИЧЕСКИЕ]]","v":{"v":1100,"d":"1,100.00 ₽"}}]
[]
[]
[null,"ЦЕРЕМОНИЯ","ЗАПЛАНИРОВАННЫЕ","ФАКТИЧЕСКИЕ","ОТКЛОНЕНИЕ"]
[null,"Оплата места проведения",{"v":500,"d":"500.00 ₽"},null,{"$f":"IF(OR(TBL_Ceremony[[#This Row],[ЗАПЛАНИРОВАННЫЕ]]=\"\",TBL_Ceremony[[#This Row],[ФАКТИЧЕСКИЕ]]=\"\"),\"\",TBL_Ceremony[[#This Row],[ЗАПЛАНИРОВАННЫЕ]]-TBL_Ceremony[[#This Row],[ФАКТИЧЕСКИЕ]])","v":""}]
[null,"Оплата официантов или церковные пожертвования",{"v":200,"d":"200.00 ₽"},null,{"$f":"IF(OR(TBL_Ceremony[[#This Row],[ЗАПЛАНИРОВАННЫЕ]]=\"\",TBL_Ceremony[[#This Row],[ФАКТИЧЕСКИЕ]]=\"\"),\"\",TBL_Ceremony[[#This Row],[ЗАПЛАНИРОВАННЫЕ]]-TBL_Ceremony[[#This Row],[ФАКТИЧЕСКИЕ]])","v":""}]
[null,"Прочие расходы",{"v":100,"d":"100.00 ₽"},null,{"$f":"IF(OR(TBL_Ceremony[[#This Row],[ЗАПЛАНИРОВАННЫЕ]]=\"\",TBL_Ceremony[[#This Row],[ФАКТИЧЕСКИЕ]]=\"\"),\"\",TBL_Ceremony[[#This Row],[ЗАПЛАНИРОВАННЫЕ]]-TBL_Ceremony[[#This Row],[ФАКТИЧЕСКИЕ]])","v":""}]
[null,"ИТОГО — ЦЕРЕМОНИЯ",{"$f":"SUBTOTAL(109,TBL_Ceremony[ЗАПЛАНИРОВАННЫЕ])","v":{"v":800,"d":"800.00 ₽"}},{"$f":"SUBTOTAL(109,TBL_Ceremony[ФАКТИЧЕСКИЕ])","v":{"v":0,"d":"0.00 ₽"}},{"$f":"TBL_Ceremony[[#Totals],[ЗАПЛАНИРОВАННЫЕ]]-TBL_Ceremony[[#Totals],[ФАКТИЧЕСКИЕ]]","v":{"v":800,"d":"800.00 ₽"}}]
[]
[]
[null,"КАНЦТОВАРЫ","ЗАПЛАНИРОВАННЫЕ","ФАКТИЧЕСКИЕ","ОТКЛОНЕНИЕ"]
[null,"Пригласительные открытки",{"v":50,"d":"50.00 ₽"},null,{"$f":"IF(OR(TBL_Stationery[[#This Row],[ЗАПЛАНИРОВАННЫЕ]]=\"\",TBL_Stationery[[#This Row],[ФАКТИЧЕСКИЕ]]=\"\"),\"\",TBL_Stationery[[#This Row],[ЗАПЛАНИРОВАННЫЕ]]-TBL_Stationery[[#This Row],[ФАКТИЧЕСКИЕ]])","v":""}]
[null,"Приглашения и подтверждения",{"v":100,"d":"100.00 ₽"},null,{"$f":"IF(OR(TBL_Stationery[[#This Row],[ЗАПЛАНИРОВАННЫЕ]]=\"\",TBL_Stationery[[#This Row],[ФАКТИЧЕСКИЕ]]=\"\"),\"\",TBL_Stationery[[#This Row],[ЗАПЛАНИРОВАННЫЕ]]-TBL_Stationery[[#This Row],[ФАКТИЧЕСКИЕ]])","v":""}]
[null,"Программы",{"v":50,"d":"50.00 ₽"},null,{"$f":"IF(OR(TBL_Stationery[[#This Row],[ЗАПЛАНИРОВАННЫЕ]]=\"\",TBL_Stationery[[#This Row],[ФАКТИЧЕСКИЕ]]=\"\"),\"\",TBL_Stationery[[#This Row],[ЗАПЛАНИРОВАННЫЕ]]-TBL_Stationery[[#This Row],[ФАКТИЧЕСКИЕ]])","v":""}]
[null,"Карточки рассадки",{"v":50,"d":"50.00 ₽"},null,{"$f":"IF(OR(TBL_Stationery[[#This Row],[ЗАПЛАНИРОВАННЫЕ]]=\"\",TBL_Stationery[[#This Row],[ФАКТИЧЕСКИЕ]]=\"\"),\"\",TBL_Stationery[[#This Row],[ЗАПЛАНИРОВАННЫЕ]]-TBL_Stationery[[#This Row],[ФАКТИЧЕСКИЕ]])","v":""}]
[null,"Карточки меню",{"v":50,"d":"50.00 ₽"},null,{"$f":"IF(OR(TBL_Stationery[[#This Row],[ЗАПЛАНИРОВАННЫЕ]]=\"\",TBL_Stationery[[#This Row],[ФАКТИЧЕСКИЕ]]=\"\"),\"\",TBL_Stationery[[#This Row],[ЗАПЛАНИРОВАННЫЕ]]-TBL_Stationery[[#This Row],[ФАКТИЧЕСКИЕ]])","v":""}]
[null,"Благодарственные письма",{"v":50,"d":"50.00 ₽"},null,{"$f":"IF(OR(TBL_Stationery[[#This Row],[ЗАПЛАНИРОВАННЫЕ]]=\"\",TBL_Stationery[[#This Row],[ФАКТИЧЕСКИЕ]]=\"\"),\"\",TBL_Stationery[[#This Row],[ЗАПЛАНИРОВАННЫЕ]]-TBL_Stationery[[#This Row],[ФАКТИЧЕСКИЕ]])","v":""}]
[null,"Почтовые расходы",{"v":50,"d":"50.00 ₽"},null,{"$f":"IF(OR(TBL_Stationery[[#This Row],[ЗАПЛАНИРОВАННЫЕ]]=\"\",TBL_Stationery[[#This Row],[ФАКТИЧЕСКИЕ]]=\"\"),\"\",TBL_Stationery[[#This Row],[ЗАПЛАНИРОВАННЫЕ]]-TBL_Stationery[[#This Row],[ФАКТИЧЕСКИЕ]])","v":""}]
[null,"Прочие расходы",{"v":100,"d":"100.00 ₽"},null,{"$f":"IF(OR(TBL_Stationery[[#This Row],[ЗАПЛАНИРОВАННЫЕ]]=\"\",TBL_Stationery[[#This Row],[ФАКТИЧЕСКИЕ]]=\"\"),\"\",TBL_Stationery[[#This Row],[ЗАПЛАНИРОВАННЫЕ]]-TBL_Stationery[[#This Row],[ФАКТИЧЕСКИЕ]])","v":""}]
[null,"ИТОГО — КАНЦТОВАРЫ",{"$f":"SUBTOTAL(109,TBL_Stationery[ЗАПЛАНИРОВАННЫЕ])","v":{"v":500,"d":"500.00 ₽"}},{"$f":"SUBTOTAL(109,TBL_Stationery[ФАКТИЧЕСКИЕ])","v":{"v":0,"d":"0.00 ₽"}},{"$f":"TBL_Stationery[[#Totals],[ЗАПЛАНИРОВАННЫЕ]]-TBL_Stationery[[#Totals],[ФАКТИЧЕСКИЕ]]","v":{"v":500,"d":"500.00 ₽"}}]
[]
[]
[null,"ОБРУЧАЛЬНЫЕ КОЛЬЦА","ЗАПЛАНИРОВАННЫЕ","ФАКТИЧЕСКИЕ","ОТКЛОНЕНИЕ"]
[null,"Обручальные кольца",{"v":1000,"d":"1,000.00 ₽"},null,{"$f":"IF(OR(TBL_WeddingRings[[#This Row],[ЗАПЛАНИРОВАННЫЕ]]=\"\",TBL_WeddingRings[[#This Row],[ФАКТИЧЕСКИЕ]]=\"\"),\"\",TBL_WeddingRings[[#This Row],[ЗАПЛАНИРОВАННЫЕ]]-TBL_WeddingRings[[#This Row],[ФАКТИЧЕСКИЕ]])","v":""}]
[null,"Аксессуары для колец",{"v":100,"d":"100.00 ₽"},null,{"$f":"IF(OR(TBL_WeddingRings[[#This Row],[ЗАПЛАНИРОВАННЫЕ]]=\"\",TBL_WeddingRings[[#This Row],[ФАКТИЧЕСКИЕ]]=\"\"),\"\",TBL_WeddingRings[[#This Row],[ЗАПЛАНИРОВАННЫЕ]]-TBL_WeddingRings[[#This Row],[ФАКТИЧЕСКИЕ]])","v":""}]
[null,"ИТОГО — ОБРУЧАЛЬНЫЕ КОЛЬЦА",{"$f":"SUBTOTAL(109,TBL_WeddingRings[ЗАПЛАНИРОВАННЫЕ])","v":{"v":1100,"d":"1,100.00 ₽"}},{"$f":"SUBTOTAL(109,TBL_WeddingRings[ФАКТИЧЕСКИЕ])","v":{"v":0,"d":"0.00 ₽"}},{"$f":"TBL_WeddingRings[[#Totals],[ЗАПЛАНИРОВАННЫЕ]]-TBL_WeddingRings[[#Totals],[ФАКТИЧЕСКИЕ]]","v":{"v":1100,"d":"1,100.00 ₽"}}]
[]
[]
[null,"ТРАНСПОРТ  ","ЗАПЛАНИРОВАННЫЕ","ФАКТИЧЕСКИЕ","ОТКЛОНЕНИЕ"]
[null,"Аренда главного автомобиля",{"v":100,"d":"100.00 ₽"},null,{"$f":"IF(OR(TBL_Transportation[[#This Row],[ЗАПЛАНИРОВАННЫЕ]]=\"\",TBL_Transportation[[#This Row],[ФАКТИЧЕСКИЕ]]=\"\"),\"\",TBL_Transportation[[#This Row],[ЗАПЛАНИРОВАННЫЕ]]-TBL_Transportation[[#This Row],[ФАКТИЧЕСКИЕ]])","v":""}]
[null,"Аренда автомобилей для гостей",{"v":100,"d":"100.00 ₽"},null,{"$f":"IF(OR(TBL_Transportation[[#This Row],[ЗАПЛАНИРОВАННЫЕ]]=\"\",TBL_Transportation[[#This Row],[ФАКТИЧЕСКИЕ]]=\"\"),\"\",TBL_Transportation[[#This Row],[ЗАПЛАНИРОВАННЫЕ]]-TBL_Transportation[[#This Row],[ФАКТИЧЕСКИЕ]])","v":""}]
[null,"Транспорт для приезжих гостей",{"v":100,"d":"100.00 ₽"},null,{"$f":"IF(OR(TBL_Transportation[[#This Row],[ЗАПЛАНИРОВАННЫЕ]]=\"\",TBL_Transportation[[#This Row],[ФАКТИЧЕСКИЕ]]=\"\"),\"\",TBL_Transportation[[#This Row],[ЗАПЛАНИРОВАННЫЕ]]-TBL_Transportation[[#This Row],[ФАКТИЧЕСКИЕ]])","v":""}]
[null,"Парковка",{"v":50,"d":"50.00 ₽"},null,{"$f":"IF(OR(TBL_Transportation[[#This Row],[ЗАПЛАНИРОВАННЫЕ]]=\"\",TBL_Transportation[[#This Row],[ФАКТИЧЕСКИЕ]]=\"\"),\"\",TBL_Transportation[[#This Row],[ЗАПЛАНИРОВАННЫЕ]]-TBL_Transportation[[#This Row],[ФАКТИЧЕСКИЕ]])","v":""}]
[null,"Прочие расходы",{"v":100,"d":"100.00 ₽"},null,{"$f":"IF(OR(TBL_Transportation[[#This Row],[ЗАПЛАНИРОВАННЫЕ]]=\"\",TBL_Transportation[[#This Row],[ФАКТИЧЕСКИЕ]]=\"\"),\"\",TBL_Transportation[[#This Row],[ЗАПЛАНИРОВАННЫЕ]]-TBL_Transportation[[#This Row],[ФАКТИЧЕСКИЕ]])","v":""}]
[null,"ИТОГО — ТРАНСПОРТ",{"$f":"SUBTOTAL(109,TBL_Transportation[ЗАПЛАНИРОВАННЫЕ])","v":{"v":450,"d":"450.00 ₽"}},{"$f":"SUBTOTAL(109,TBL_Transportation[ФАКТИЧЕСКИЕ])","v":{"v":0,"d":"0.00 ₽"}},{"$f":"TBL_Transportation[[#Totals],[ЗАПЛАНИРОВАННЫЕ]]-TBL_Transportation[[#Totals],[ФАКТИЧЕСКИЕ]]","v":{"v":450,"d":"450.00 ₽"}}]